[Event "Late-Titled-Tuesday-Blitz-November-28-2023"]
[Site "Chess.com"]
[Date "2023.11.28"]
[Round "10"]
[White "nindjaxx8"]
[Black "Hirna2005"]
[Result "1-0"]
[WhiteElo "2459"]
[BlackElo "2347"]
[TimeControl "180+1"]
[EndTime "15:54:26 PST"]
[Termination "nindjaxx8 won on time"]

1. d4 {[%clk 0:02:56.3]} 1... g6 {[%clk 0:03:00.1]} 2. c4 {[%clk 0:02:55.7]}
2... Bg7 {[%clk 0:03:00.3]} 3. Nc3 {[%clk 0:02:56.2]} 3... d6 {[%clk 0:03:00.7]}
4. Nf3 {[%clk 0:02:55.9]} 4... Nc6 {[%clk 0:03:00.6]} 5. Bf4 {[%clk 0:02:55.9]}
5... Bg4 {[%clk 0:03:00.1]} 6. e3 {[%clk 0:02:55.4]} 6... e5 {[%clk 0:02:56.6]}
7. dxe5 {[%clk 0:02:53.1]} 7... dxe5 {[%clk 0:02:56.7]} 8. Bg3 {[%clk
0:02:50.8]} 8... Qxd1+ {[%clk 0:02:35.5]} 9. Rxd1 {[%clk 0:02:48.7]} 9... Nge7
{[%clk 0:02:35.2]} 10. Be2 {[%clk 0:02:46.9]} 10... Be6 {[%clk 0:02:23.5]} 11.
Nd5 {[%clk 0:02:42.1]} 11... O-O-O {[%clk 0:02:13.9]} 12. Nxe7+ {[%clk 0:02:37]}
12... Nxe7 {[%clk 0:02:14]} 13. Bxe5 {[%clk 0:02:19.3]} 13... Rxd1+ {[%clk
0:02:13.5]} 14. Kxd1 {[%clk 0:02:18.4]} 14... Rd8+ {[%clk 0:02:10.5]} 15. Kc1
{[%clk 0:02:17.3]} 15... f6 {[%clk 0:02:07.7]} 16. Bc3 {[%clk 0:02:15.4]} 16...
Nf5 {[%clk 0:02:02.7]} 17. Rd1 {[%clk 0:02:12.6]} 17... Re8 {[%clk 0:02:02]} 18.
Nd4 {[%clk 0:02:10]} 18... Bd7 {[%clk 0:01:56.5]} 19. Bf3 {[%clk 0:02:04]} 19...
Nh4 {[%clk 0:01:50.9]} 20. Rd2 {[%clk 0:01:48.9]} 20... a6 {[%clk 0:01:47.5]}
21. Nb3 {[%clk 0:01:43.5]} 21... Nxf3 {[%clk 0:01:46.5]} 22. gxf3 {[%clk
0:01:41.8]} 22... Be6 {[%clk 0:01:43.9]} 23. Nc5 {[%clk 0:01:33.9]} 23... Bh3
{[%clk 0:01:33.3]} 24. Ne4 {[%clk 0:01:28.1]} 24... Re6 {[%clk 0:01:28.2]} 25.
b3 {[%clk 0:01:16.2]} 25... Bg2 {[%clk 0:01:25.8]} 26. Nc5 {[%clk 0:01:15.6]}
26... Re7 {[%clk 0:01:23.3]} 27. f4 {[%clk 0:01:12.4]} 27... Bh3 {[%clk
0:01:01.6]} 28. Nd3 {[%clk 0:01:07.2]} 28... b6 {[%clk 0:01:00.1]} 29. Nb4
{[%clk 0:01:05]} 29... Kb7 {[%clk 0:00:59.1]} 30. Nd5 {[%clk 0:01:04.5]} 30...
Rf7 {[%clk 0:00:58.9]} 31. Bb2 {[%clk 0:00:59.2]} 31... Bg2 {[%clk 0:00:54.4]}
32. Nc3 {[%clk 0:00:58.3]} 32... Bc6 {[%clk 0:00:51.5]} 33. Re2 {[%clk
0:00:55.6]} 33... g5 {[%clk 0:00:45.5]} 34. f5 {[%clk 0:00:52.7]} 34... Bf8
{[%clk 0:00:42.2]} 35. e4 {[%clk 0:00:50.8]} 35... Bd6 {[%clk 0:00:41]} 36. f3
{[%clk 0:00:50.6]} 36... Bf4+ {[%clk 0:00:40.3]} 37. Kc2 {[%clk 0:00:49.9]}
37... h5 {[%clk 0:00:36.8]} 38. Nd5 {[%clk 0:00:49.1]} 38... Bxd5 {[%clk
0:00:35.4]} 39. exd5 {[%clk 0:00:50]} 39... g4 {[%clk 0:00:33.6]} 40. fxg4
{[%clk 0:00:49.9]} 40... hxg4 {[%clk 0:00:33.6]} 41. Re4 {[%clk 0:00:48.5]}
41... Bxh2 {[%clk 0:00:33.3]} 42. Rxg4 {[%clk 0:00:49]} 42... Bd6 {[%clk
0:00:33.2]} 43. Rg6 {[%clk 0:00:48.5]} 43... Be7 {[%clk 0:00:33.3]} 44. a4
{[%clk 0:00:44.6]} 44... b5 {[%clk 0:00:23.8]} 45. axb5 {[%clk 0:00:35.8]} 45...
axb5 {[%clk 0:00:23.8]} 46. Bd4 {[%clk 0:00:24.2]} 46... c6 {[%clk 0:00:23.4]}
47. Kd3 {[%clk 0:00:19.6]} 47... Kc7 {[%clk 0:00:21.5]} 48. dxc6 {[%clk
0:00:12.1]} 48... Kxc6 {[%clk 0:00:21.3]} 49. Rh6 {[%clk 0:00:11.5]} 49... bxc4+
{[%clk 0:00:20.8]} 50. Kxc4 {[%clk 0:00:11.5]} 50... Bd8 {[%clk 0:00:21.2]} 51.
b4 {[%clk 0:00:11.2]} 51... Kd6 {[%clk 0:00:20.6]} 52. b5 {[%clk 0:00:10.3]}
52... Ba5 {[%clk 0:00:19.8]} 53. Rh8 {[%clk 0:00:09.5]} 53... Rc7+ {[%clk
0:00:18.8]} 54. Kd3 {[%clk 0:00:09.1]} 54... Ke7 {[%clk 0:00:17.3]} 55. Rh7+
{[%clk 0:00:08.8]} 55... Kd6 {[%clk 0:00:17.8]} 56. Rxc7 {[%clk 0:00:08.9]}
56... Bxc7 {[%clk 0:00:18.2]} 57. Kc4 {[%clk 0:00:05.3]} 57... Bd8 {[%clk
0:00:16.4]} 58. b6 {[%clk 0:00:03.5]} 58... Kc6 {[%clk 0:00:16.6]} 59. Bf2
{[%clk 0:00:03]} 59... Be7 {[%clk 0:00:16.6]} 60. Bg1 {[%clk 0:00:03.3]} 60...
Bd6 {[%clk 0:00:16.6]} 61. Bd4 {[%clk 0:00:03.6]} 61... Be7 {[%clk 0:00:16.8]}
62. Be3 {[%clk 0:00:03.7]} 62... Bd6 {[%clk 0:00:16.8]} 63. Bf2 {[%clk
0:00:04.2]} 63... Be7 {[%clk 0:00:16.8]} 64. Bd4 {[%clk 0:00:04.7]} 64... Bd8
{[%clk 0:00:16.9]} 65. Kb4 {[%clk 0:00:04.3]} 65... Bxb6 {[%clk 0:00:16.8]} 66.
Bxf6 {[%clk 0:00:02]} 66... Be3 {[%clk 0:00:16.4]} 67. Kc4 {[%clk 0:00:01.9]}
67... Kd6 {[%clk 0:00:16.6]} 68. Bc3 {[%clk 0:00:02.1]} 68... Bg5 {[%clk
0:00:15.9]} 69. Kd3 {[%clk 0:00:02.3]} 69... Be7 {[%clk 0:00:15.8]} 70. Ke4
{[%clk 0:00:02.5]} 70... Bg5 {[%clk 0:00:15.6]} 71. Bb4+ {[%clk 0:00:02.7]}
71... Kd7 {[%clk 0:00:15.2]} 72. Bc3 {[%clk 0:00:03.6]} 72... Be7 {[%clk
0:00:15.1]} 73. Bd4 {[%clk 0:00:03.9]} 73... Bg5 {[%clk 0:00:15.3]} 74. Kd5
{[%clk 0:00:04.2]} 74... Be7 {[%clk 0:00:15.4]} 75. Be5 {[%clk 0:00:04.5]} 75...
Bg5 {[%clk 0:00:15.5]} 76. Ke4 {[%clk 0:00:05.2]} 76... Be7 {[%clk 0:00:15.6]}
77. Kf3 {[%clk 0:00:05.8]} 77... Bg5 {[%clk 0:00:15.7]} 78. Kg4 {[%clk
0:00:06.3]} 78... Be7 {[%clk 0:00:15.9]} 79. Kh5 {[%clk 0:00:07]} 79... Bd8
{[%clk 0:00:15.9]} 80. Kg6 {[%clk 0:00:07.4]} 80... Ke8 {[%clk 0:00:15.9]} 81.
Bf6 {[%clk 0:00:07.1]} 81... Bc7 {[%clk 0:00:15.6]} 82. Kg7 {[%clk 0:00:06.4]}
82... Bf4 {[%clk 0:00:14.8]} 83. Kg6 {[%clk 0:00:06.2]} 83... Bc7 {[%clk
0:00:14.4]} 84. Bg5 {[%clk 0:00:05.5]} 84... Be5 {[%clk 0:00:14.1]} 85. Bh4
{[%clk 0:00:05.8]} 85... Bd4 {[%clk 0:00:14.1]} 86. Bf6 {[%clk 0:00:06.2]} 86...
Be3 {[%clk 0:00:13.8]} 87. Bb2 {[%clk 0:00:04.6]} 87... Bc5 {[%clk 0:00:10.2]}
88. f6 {[%clk 0:00:04.7]} 88... Bf8 {[%clk 0:00:10.4]} 89. f7+ {[%clk
0:00:04.5]} 89... Kd7 {[%clk 0:00:10.2]} 90. Kh7 {[%clk 0:00:03.7]} 90... Ke6
{[%clk 0:00:09]} 91. Kg8 {[%clk 0:00:03.9]} 91... Be7 {[%clk 0:00:09]} 92. Bg7
{[%clk 0:00:04]} 92... Bd6 {[%clk 0:00:05.8]} 93. Bf8 {[%clk 0:00:04.2]} 93...
Bf4 {[%clk 0:00:04.9]} 94. Ba3 {[%clk 0:00:01.7]} 94... Bh6 {[%clk 0:00:04.7]}
95. Bb2 {[%clk 0:00:02.4]} 95... Ke7 {[%clk 0:00:03.5]} 96. Bg7 {[%clk
0:00:02.2]} 96... Bg5 {[%clk 0:00:02.4]} 97. f8=Q+ {[%clk 0:00:02.7]} 97... Ke6
{[%clk 0:00:02.8]} 98. Qf7+ {[%clk 0:00:03.6]} 98... Kd6 {[%clk 0:00:01.4]} 99.
Kh7 {[%clk 0:00:04.5]} 99... Be7 {[%clk 0:00:01.1]} 100. Kg6 {[%clk 0:00:05.4]}
100... Kd7 {[%clk 0:00:01.5]} 101. Kf5 {[%clk 0:00:05.8]} 101... Kd8 {[%clk
0:00:01.8]} 102. Bf6 {[%clk 0:00:06]} 1-0

[Event "Late-Titled-Tuesday-Blitz-November-28-2023"]
[Site "Chess.com"]
[Date "2023.11.28"]
[Round "10"]
[White "vi_pranav"]
[Black "dropstoneDP"]
[Result "1/2-1/2"]
[WhiteElo "3048"]
[BlackElo "2957"]
[TimeControl "180+1"]
[EndTime "15:54:30 PST"]
[Termination "Game drawn by stalemate"]

1. e4 {[%clk 0:03:00.9]} 1... e5 {[%clk 0:02:59.4]} 2. Nf3 {[%clk 0:03:01.2]}
2... Nf6 {[%clk 0:03:00.1]} 3. Nc3 {[%clk 0:02:57.3]} 3... Nc6 {[%clk 0:03:00]}
4. g3 {[%clk 0:02:57.1]} 4... Bc5 {[%clk 0:02:59.2]} 5. Bg2 {[%clk 0:02:56.9]}
5... d6 {[%clk 0:02:59.9]} 6. d3 {[%clk 0:02:57.3]} 6... a5 {[%clk 0:03:00.6]}
7. h3 {[%clk 0:02:57]} 7... O-O {[%clk 0:02:59.7]} 8. O-O {[%clk 0:02:55.8]}
8... h6 {[%clk 0:02:59.4]} 9. Kh2 {[%clk 0:02:55.8]} 9... a4 {[%clk 0:02:59]}
10. Ne2 {[%clk 0:02:52.1]} 10... a3 {[%clk 0:02:57.4]} 11. b3 {[%clk 0:02:50.7]}
11... d5 {[%clk 0:02:55.9]} 12. exd5 {[%clk 0:02:44.7]} 12... Nxd5 {[%clk
0:02:56.8]} 13. c3 {[%clk 0:02:44.5]} 13... Bb6 {[%clk 0:02:34.7]} 14. b4 {[%clk
0:02:38.5]} 14... Re8 {[%clk 0:02:32.9]} 15. Nd2 {[%clk 0:02:29.9]} 15... Bf5
{[%clk 0:02:30.5]} 16. Nc4 {[%clk 0:02:27.5]} 16... Nf6 {[%clk 0:02:18.1]} 17.
b5 {[%clk 0:02:02.5]} 17... Na5 {[%clk 0:02:11.9]} 18. Nxb6 {[%clk 0:02:01.3]}
18... cxb6 {[%clk 0:02:12.8]} 19. d4 {[%clk 0:02:01.8]} 19... Nc4 {[%clk
0:02:06.9]} 20. dxe5 {[%clk 0:01:59.5]} 20... Nxe5 {[%clk 0:01:50.2]} 21. Nd4
{[%clk 0:01:56.4]} 21... Be4 {[%clk 0:01:48.3]} 22. f3 {[%clk 0:01:55]} 22...
Bd3 {[%clk 0:01:47.7]} 23. Re1 {[%clk 0:01:54.6]} 23... Bc4 {[%clk 0:01:45.9]}
24. f4 {[%clk 0:01:37]} 24... Nd3 {[%clk 0:01:43.3]} 25. Rxe8+ {[%clk
0:01:36.8]} 25... Qxe8 {[%clk 0:01:44.2]} 26. Bxb7 {[%clk 0:01:37.3]} 26... Rd8
{[%clk 0:01:38.1]} 27. Bxa3 {[%clk 0:01:15.7]} 27... Qe3 {[%clk 0:01:37.4]} 28.
Qe2 {[%clk 0:01:08.7]} 28... Qxe2+ {[%clk 0:01:06.6]} 29. Nxe2 {[%clk
0:01:09.6]} 29... Bxb5 {[%clk 0:01:07.2]} 30. Nd4 {[%clk 0:01:07.4]} 30... Bc4
{[%clk 0:00:54.6]} 31. Bc6 {[%clk 0:01:02.2]} 31... Nd5 {[%clk 0:00:49.8]} 32.
Bxd5 {[%clk 0:00:46.6]} 32... Rxd5 {[%clk 0:00:50.7]} 33. Bc1 {[%clk 0:00:44]}
33... Nxc1 {[%clk 0:00:31.1]} 34. Rxc1 {[%clk 0:00:44.9]} 34... Ra5 {[%clk
0:00:31.6]} 35. Rc2 {[%clk 0:00:42.7]} 35... Bxa2 {[%clk 0:00:31]} 36. Rb2
{[%clk 0:00:41.8]} 36... Bd5 {[%clk 0:00:29.6]} 37. g4 {[%clk 0:00:38.1]} 37...
Rc5 {[%clk 0:00:19]} 38. Ne2 {[%clk 0:00:16.7]} 38... Bf3 {[%clk 0:00:18]} 39.
Nd4 {[%clk 0:00:13.9]} 39... Be4 {[%clk 0:00:16.6]} 40. Re2 {[%clk 0:00:12.1]}
40... Bd3 {[%clk 0:00:12.9]} 41. Re3 {[%clk 0:00:09.1]} 41... Ba6 {[%clk
0:00:02.7]} 42. Kg3 {[%clk 0:00:09.2]} 42... g6 {[%clk 0:00:02.4]} 43. f5 {[%clk
0:00:09.3]} 43... Kg7 {[%clk 0:00:02.7]} 44. fxg6 {[%clk 0:00:09.7]} 44... Kxg6
{[%clk 0:00:03.3]} 45. Nf3 {[%clk 0:00:07.7]} 45... Bc8 {[%clk 0:00:02.6]} 46.
h4 {[%clk 0:00:05.4]} 46... Kg7 {[%clk 0:00:03]} 47. Nd4 {[%clk 0:00:04.9]}
47... Rc4 {[%clk 0:00:02.5]} 48. g5 {[%clk 0:00:04]} 48... hxg5 {[%clk
0:00:02.5]} 49. hxg5 {[%clk 0:00:04.9]} 49... Kg6 {[%clk 0:00:03.2]} 50. Kf4
{[%clk 0:00:04.9]} 50... b5 {[%clk 0:00:03.9]} 51. Rd3 {[%clk 0:00:03.6]} 51...
Bf5 {[%clk 0:00:03.7]} 52. Re3 {[%clk 0:00:03.6]} 52... b4 {[%clk 0:00:03.3]}
53. Ke5 {[%clk 0:00:04.1]} 53... bxc3 {[%clk 0:00:02.8]} 54. Re1 {[%clk
0:00:02.8]} 54... c2 {[%clk 0:00:02.8]} 55. Rc1 {[%clk 0:00:02.5]} 55... Kxg5
{[%clk 0:00:02.6]} 56. Nxf5 {[%clk 0:00:01.7]} 56... Rc5+ {[%clk 0:00:02.9]} 57.
Ke4 {[%clk 0:00:02.2]} 57... Rxf5 {[%clk 0:00:02.9]} 58. Rxc2 {[%clk 0:00:02.1]}
58... Rf4+ {[%clk 0:00:03.3]} 59. Ke3 {[%clk 0:00:02.5]} 59... Kg4 {[%clk
0:00:02.5]} 60. Rg2+ {[%clk 0:00:02.4]} 60... Kf5 {[%clk 0:00:03.1]} 61. Rg8
{[%clk 0:00:02.5]} 61... f6 {[%clk 0:00:03.2]} 62. Ra8 {[%clk 0:00:02.5]} 62...
Kg4 {[%clk 0:00:02.7]} 63. Rg8+ {[%clk 0:00:02.1]} 63... Kf5 {[%clk 0:00:03.3]}
64. Ra8 {[%clk 0:00:02.8]} 64... Rf1 {[%clk 0:00:01.7]} 65. Ke2 {[%clk
0:00:03.1]} 65... Rb1 {[%clk 0:00:02.3]} 66. Kf3 {[%clk 0:00:02.6]} 66... Rb3+
{[%clk 0:00:02.6]} 67. Kf2 {[%clk 0:00:03.3]} 67... Rb4 {[%clk 0:00:02.6]} 68.
Ra5+ {[%clk 0:00:03.5]} 68... Kf4 {[%clk 0:00:02.7]} 69. Ra2 {[%clk 0:00:03.9]}
69... f5 {[%clk 0:00:03.2]} 70. Ra3 {[%clk 0:00:03.4]} 70... Rb2+ {[%clk
0:00:02.7]} 71. Kf1 {[%clk 0:00:03.8]} 71... Kg4 {[%clk 0:00:03.6]} 72. Rc3
{[%clk 0:00:04]} 72... Rd2 {[%clk 0:00:03.9]} 73. Ra3 {[%clk 0:00:04.3]} 73...
Kf4 {[%clk 0:00:04.5]} 74. Rb3 {[%clk 0:00:04.6]} 74... Ke4 {[%clk 0:00:05.2]}
75. Ra3 {[%clk 0:00:04.8]} 75... Rd3 {[%clk 0:00:05.9]} 76. Ra5 {[%clk
0:00:01.6]} 76... f4 {[%clk 0:00:05]} 77. Kf2 {[%clk 0:00:01.6]} 77... Rd2+
{[%clk 0:00:05.3]} 78. Kf1 {[%clk 0:00:02]} 78... Ke3 {[%clk 0:00:05.6]} 79.
Ra3+ {[%clk 0:00:02.2]} 79... Ke4 {[%clk 0:00:06.1]} 80. Ra4+ {[%clk 0:00:02.6]}
80... Kf3 {[%clk 0:00:06.4]} 81. Ra3+ {[%clk 0:00:03.3]} 81... Kg4 {[%clk
0:00:07]} 82. Rb3 {[%clk 0:00:03.8]} 82... Kf5 {[%clk 0:00:06.1]} 83. Ra3 {[%clk
0:00:04.1]} 83... Ke5 {[%clk 0:00:06.5]} 84. Rb3 {[%clk 0:00:04.3]} 84... Ke4
{[%clk 0:00:07.2]} 85. Ra3 {[%clk 0:00:04.7]} 85... Rd3 {[%clk 0:00:07.7]} 86.
Rxd3 {[%clk 0:00:04.2]} 86... Kxd3 {[%clk 0:00:08.6]} 87. Kf2 {[%clk 0:00:04.8]}
87... Ke4 {[%clk 0:00:09.4]} 88. Ke2 {[%clk 0:00:05.3]} 88... f3+ {[%clk
0:00:10.3]} 89. Kf2 {[%clk 0:00:05.8]} 89... Kf4 {[%clk 0:00:11.2]} 90. Kf1
{[%clk 0:00:06.4]} 90... Ke3 {[%clk 0:00:12.1]} 91. Ke1 {[%clk 0:00:06.9]} 91...
f2+ {[%clk 0:00:13]} 92. Kf1 {[%clk 0:00:07.4]} 92... Kf3 {[%clk 0:00:13.9]}
1/2-1/2

[Event "Late-Titled-Tuesday-Blitz-November-28-2023"]
[Site "Chess.com"]
[Date "2023.11.28"]
[Round "11"]
[White "PNEPaul"]
[Black "SilverCityIndigo"]
[Result "0-1"]
[WhiteElo "1870"]
[BlackElo "2436"]
[TimeControl "180+1"]
[EndTime "15:57:36 PST"]
[Termination "SilverCityIndigo won by resignation"]

1. e4 {[%clk 0:03:00.9]} 1... e5 {[%clk 0:02:59.7]} 2. Nf3 {[%clk 0:03:00.7]}
2... Nc6 {[%clk 0:02:59.8]} 3. Bc4 {[%clk 0:02:59.8]} 3... Nf6 {[%clk
0:03:00.4]} 4. d4 {[%clk 0:02:58.6]} 4... exd4 {[%clk 0:03:00.3]} 5. O-O {[%clk
0:02:58.4]} 5... Nxe4 {[%clk 0:03:01]} 6. Re1 {[%clk 0:02:57.7]} 6... d5 {[%clk
0:03:01.6]} 7. Bxd5 {[%clk 0:02:57.9]} 7... Qxd5 {[%clk 0:03:02.5]} 8. Nc3
{[%clk 0:02:57.7]} 8... Qh5 {[%clk 0:03:03.1]} 9. Nxe4 {[%clk 0:02:57.1]} 9...
Be6 {[%clk 0:03:03.7]} 10. Neg5 {[%clk 0:02:56.7]} 10... O-O-O {[%clk
0:03:03.4]} 11. Nxe6 {[%clk 0:02:56.5]} 11... fxe6 {[%clk 0:03:04.3]} 12. Bg5
{[%clk 0:02:55.1]} 12... Rd5 {[%clk 0:02:52.6]} 13. Bf4 {[%clk 0:02:13.4]} 13...
Qf5 {[%clk 0:02:35.6]} 14. Bg3 {[%clk 0:02:11.8]} 14... Bb4 {[%clk 0:02:15.6]}
15. Rf1 {[%clk 0:02:11.1]} 15... h5 {[%clk 0:02:08]} 16. a3 {[%clk 0:02:10.4]}
16... Be7 {[%clk 0:02:03.6]} 17. Qe2 {[%clk 0:01:57.2]} 17... h4 {[%clk
0:02:01.2]} 0-1

[Event "Late-Titled-Tuesday-Blitz-November-28-2023"]
[Site "Chess.com"]
[Date "2023.11.28"]
[Round "11"]
[White "dropstoneDP"]
[Black "GHANDEEVAM2003"]
[Result "1-0"]
[WhiteElo "2968"]
[BlackElo "3100"]
[TimeControl "180+1"]
[EndTime "15:58:28 PST"]
[Termination "dropstoneDP won by checkmate"]

1. e4 {[%clk 0:03:00.9]} 1... c6 {[%clk 0:02:59.4]} 2. Nf3 {[%clk 0:03:00.8]}
2... d5 {[%clk 0:03:00.3]} 3. Nc3 {[%clk 0:03:01.7]} 3... Bg4 {[%clk 0:02:58.6]}
4. h3 {[%clk 0:03:01.4]} 4... Bxf3 {[%clk 0:02:58.8]} 5. Qxf3 {[%clk 0:03:02.3]}
5... e6 {[%clk 0:02:59.2]} 6. d4 {[%clk 0:03:02.6]} 6... dxe4 {[%clk 0:02:58]}
7. Qe3 {[%clk 0:03:02.4]} 7... f5 {[%clk 0:02:57.8]} 8. Bc4 {[%clk 0:02:58.8]}
8... Qd7 {[%clk 0:02:53.6]} 9. f3 {[%clk 0:02:57.5]} 9... b5 {[%clk 0:02:42.9]}
10. Bb3 {[%clk 0:02:55.9]} 10... c5 {[%clk 0:02:19.2]} 11. dxc5 {[%clk
0:02:51.4]} 11... Na6 {[%clk 0:02:19.9]} 12. fxe4 {[%clk 0:02:41.6]} 12... Bxc5
{[%clk 0:02:19.6]} 13. Qe2 {[%clk 0:02:42.2]} 13... Ne7 {[%clk 0:01:59.8]} 14.
Qxb5 {[%clk 0:02:41.5]} 14... Qxb5 {[%clk 0:01:50.9]} 15. Nxb5 {[%clk
0:02:42.4]} 15... fxe4 {[%clk 0:01:48.1]} 16. Bxe6 {[%clk 0:02:25.7]} 16... Rb8
{[%clk 0:01:47.5]} 17. a4 {[%clk 0:02:16.5]} 17... Rb6 {[%clk 0:01:42.9]} 18.
Bb3 {[%clk 0:02:15.1]} 18... Rg6 {[%clk 0:01:41.1]} 19. Bf4 {[%clk 0:02:08.5]}
19... Rxg2 {[%clk 0:01:33.6]} 20. O-O-O {[%clk 0:02:08.4]} 20... Rf8 {[%clk
0:01:32.9]} 21. Bd6 {[%clk 0:02:04]} 21... Rff2 {[%clk 0:01:28.3]} 22. Bxc5
{[%clk 0:02:00.2]} 22... Nxc5 {[%clk 0:01:28.7]} 23. Nc7+ {[%clk 0:02:00.6]}
23... Kf8 {[%clk 0:01:26.4]} 24. Rd8# {[%clk 0:02:01.5]} 1-0

[Event "Late-Titled-Tuesday-Blitz-November-28-2023"]
[Site "Chess.com"]
[Date "2023.11.28"]
[Round "11"]
[White "YellowJacek"]
[Black "Ducke13"]
[Result "0-1"]
[WhiteElo "2353"]
[BlackElo "2454"]
[TimeControl "180+1"]
[EndTime "15:58:39 PST"]
[Termination "Ducke13 won by resignation"]

1. e4 {[%clk 0:02:59.7]} 1... c6 {[%clk 0:03:00.1]} 2. d4 {[%clk 0:02:59.4]}
2... d5 {[%clk 0:03:00.1]} 3. Nc3 {[%clk 0:02:59.6]} 3... dxe4 {[%clk
0:02:59.5]} 4. Nxe4 {[%clk 0:02:59.8]} 4... Nf6 {[%clk 0:03:00.2]} 5. Nxf6+
{[%clk 0:02:59.5]} 5... exf6 {[%clk 0:03:01.1]} 6. c3 {[%clk 0:03:00.1]} 6...
Bd6 {[%clk 0:03:00.4]} 7. Bd3 {[%clk 0:02:59.6]} 7... O-O {[%clk 0:02:59.9]} 8.
Ne2 {[%clk 0:02:58.2]} 8... Re8 {[%clk 0:02:58.8]} 9. O-O {[%clk 0:02:58.1]}
9... Bg4 {[%clk 0:02:53.5]} 10. h3 {[%clk 0:02:54.5]} 10... Bh5 {[%clk
0:02:53.6]} 11. Qc2 {[%clk 0:02:51.6]} 11... Bg6 {[%clk 0:02:53.5]} 12. Bxg6
{[%clk 0:02:50.8]} 12... hxg6 {[%clk 0:02:54.4]} 13. Be3 {[%clk 0:02:45.8]}
13... Nd7 {[%clk 0:02:54.2]} 14. Rfe1 {[%clk 0:02:45.6]} 14... Bc7 {[%clk
0:02:48.8]} 15. Qb3 {[%clk 0:02:43.8]} 15... b5 {[%clk 0:02:35.9]} 16. Nf4
{[%clk 0:02:40.8]} 16... Nf8 {[%clk 0:02:26.6]} 17. Bd2 {[%clk 0:02:34.2]} 17...
Qd6 {[%clk 0:02:24.5]} 18. g3 {[%clk 0:02:24.5]} 18... g5 {[%clk 0:02:19.6]} 19.
Nd3 {[%clk 0:02:16.4]} 19... Ne6 {[%clk 0:02:16.1]} 20. Re2 {[%clk 0:02:11.6]}
20... Re7 {[%clk 0:01:55.6]} 21. Rae1 {[%clk 0:02:11]} 21... Rae8 {[%clk
0:01:55.4]} 22. a4 {[%clk 0:01:53.8]} 22... Nxd4 {[%clk 0:01:44.5]} 23. Rxe7
{[%clk 0:01:48.1]} 23... Nxb3 {[%clk 0:01:42.9]} 24. Rxe8+ {[%clk 0:01:47.8]}
24... Kh7 {[%clk 0:01:43.3]} 25. Nc1 {[%clk 0:01:34.4]} 25... Nxd2 {[%clk
0:01:39.7]} 0-1

[Event "Late-Titled-Tuesday-Blitz-November-28-2023"]
[Site "Chess.com"]
[Date "2023.11.28"]
[Round "11"]
[White "Grischuk"]
[Black "vladgoncharov"]
[Result "1-0"]
[WhiteElo "3067"]
[BlackElo "2645"]
[TimeControl "180+1"]
[EndTime "15:59:56 PST"]
[Termination "Grischuk won by resignation"]

1. e4 {[%clk 0:03:00.9]} 1... e6 {[%clk 0:02:59.4]} 2. d4 {[%clk 0:03:00.8]}
2... d5 {[%clk 0:02:59.7]} 3. Nc3 {[%clk 0:03:01.5]} 3... Nc6 {[%clk 0:02:59.6]}
4. Nf3 {[%clk 0:02:50.7]} 4... Nf6 {[%clk 0:02:58.6]} 5. exd5 {[%clk 0:02:51.1]}
5... exd5 {[%clk 0:02:57.7]} 6. Bb5 {[%clk 0:02:51.5]} 6... Bd6 {[%clk
0:02:49.2]} 7. O-O {[%clk 0:02:47]} 7... O-O {[%clk 0:02:44.7]} 8. Bg5 {[%clk
0:02:45.1]} 8... Be7 {[%clk 0:02:42.6]} 9. Bxc6 {[%clk 0:02:42.5]} 9... bxc6
{[%clk 0:02:41.8]} 10. Ne5 {[%clk 0:02:43.3]} 10... Bb7 {[%clk 0:02:40.3]} 11.
Na4 {[%clk 0:02:38.4]} 11... h6 {[%clk 0:02:31.8]} 12. Bh4 {[%clk 0:02:36.3]}
12... Re8 {[%clk 0:02:24.2]} 13. Re1 {[%clk 0:02:34.9]} 13... g5 {[%clk
0:02:20.3]} 14. Bg3 {[%clk 0:02:34.7]} 14... Ne4 {[%clk 0:02:20.3]} 15. Qh5
{[%clk 0:02:34.1]} 15... Rf8 {[%clk 0:02:12.3]} 16. Qxh6 {[%clk 0:02:28.6]}
16... Qd6 {[%clk 0:02:12.4]} 17. Ng4 {[%clk 0:02:13.6]} 17... Qxh6 {[%clk
0:01:47.1]} 18. Nxh6+ {[%clk 0:02:14.5]} 18... Kh8 {[%clk 0:01:46.8]} 19. f3
{[%clk 0:02:08.1]} 19... Nxg3 {[%clk 0:01:44.2]} 20. Rxe7 {[%clk 0:02:07.7]}
20... Kg7 {[%clk 0:01:41]} 21. hxg3 {[%clk 0:02:03.1]} 21... Kxh6 {[%clk
0:01:40.2]} 22. Nc5 {[%clk 0:02:03.6]} 22... Bc8 {[%clk 0:01:31.4]} 23. Rxc7
{[%clk 0:02:00.8]} 23... Bf5 {[%clk 0:01:31.8]} 24. Rxc6+ {[%clk 0:02:01.1]}
24... Kg7 {[%clk 0:01:31.6]} 25. c3 {[%clk 0:01:57.8]} 25... Rab8 {[%clk
0:01:27.2]} 26. b3 {[%clk 0:01:56]} 26... Rfe8 {[%clk 0:01:25.9]} 27. Kf2 {[%clk
0:01:54.5]} 27... Rb6 {[%clk 0:01:12.2]} 28. Rc7 {[%clk 0:01:47.6]} 28... Rc8
{[%clk 0:00:55.6]} 29. Rxa7 {[%clk 0:01:42.3]} 29... Rh6 {[%clk 0:00:54.5]} 30.
g4 {[%clk 0:01:40]} 30... Bg6 {[%clk 0:00:50.4]} 31. a4 {[%clk 0:01:36.3]} 31...
Rhh8 {[%clk 0:00:41.9]} 32. a5 {[%clk 0:01:35.6]} 1-0

[Event "Late-Titled-Tuesday-Blitz-November-28-2023"]
[Site "Chess.com"]
[Date "2023.11.28"]
[Round "11"]
[White "Elbebiber"]
[Black "cthake"]
[Result "0-1"]
[WhiteElo "2123"]
[BlackElo "1942"]
[TimeControl "180+1"]
[EndTime "16:00:00 PST"]
[Termination "cthake won by resignation"]

1. d4 {[%clk 0:03:00.9]} 1... Nf6 {[%clk 0:02:57.8]} 2. Bg5 {[%clk 0:03:00.2]}
2... g6 {[%clk 0:02:53.5]} 3. Bxf6 {[%clk 0:02:59.4]} 3... exf6 {[%clk
0:02:52.3]} 4. e3 {[%clk 0:02:59.9]} 4... Bg7 {[%clk 0:02:52.1]} 5. g3 {[%clk
0:02:53.9]} 5... O-O {[%clk 0:02:51.9]} 6. Bg2 {[%clk 0:02:50.8]} 6... f5 {[%clk
0:02:52]} 7. Ne2 {[%clk 0:02:48.7]} 7... d5 {[%clk 0:02:51.9]} 8. O-O {[%clk
0:02:28.4]} 8... c6 {[%clk 0:02:49.3]} 9. Nd2 {[%clk 0:02:14.4]} 9... Nd7 {[%clk
0:02:42.3]} 10. c4 {[%clk 0:02:11]} 10... Nf6 {[%clk 0:02:41.4]} 11. Qb3 {[%clk
0:02:05.1]} 11... Ne4 {[%clk 0:02:36.9]} 12. Rfd1 {[%clk 0:01:56.7]} 12... Qb6
{[%clk 0:02:34.5]} 13. c5 {[%clk 0:01:48.7]} 13... Qc7 {[%clk 0:02:24.9]} 14.
Nf4 {[%clk 0:01:40.2]} 14... Be6 {[%clk 0:02:20.1]} 15. Rac1 {[%clk 0:01:36.2]}
15... g5 {[%clk 0:02:17.4]} 16. Nh5 {[%clk 0:01:27.9]} 16... Bh8 {[%clk
0:02:12.4]} 17. f4 {[%clk 0:01:00.2]} 17... h6 {[%clk 0:01:50.5]} 18. g4 {[%clk
0:00:37.5]} 18... Nxd2 {[%clk 0:01:46.8]} 19. Rxd2 {[%clk 0:00:37.2]} 19... fxg4
{[%clk 0:01:47]} 20. fxg5 {[%clk 0:00:32]} 20... hxg5 {[%clk 0:01:45.9]} 21. Rf1
{[%clk 0:00:26]} 21... f5 {[%clk 0:01:45.5]} 22. Rdf2 {[%clk 0:00:22.4]} 22...
Qh7 {[%clk 0:01:37.2]} 23. Ng3 {[%clk 0:00:21.8]} 23... f4 {[%clk 0:01:33.6]}
24. Qd3 {[%clk 0:00:17.4]} 24... Qxd3 {[%clk 0:01:30.9]} 0-1